lending/lending_fUSD_20260310
["ID","MTS","AMOUNT","RATE_DAILY","PERIOD"]
[408179077,1773182149269,366.5351,0.0001408,2]
[408179078,1773182149294,5000.01,0.0001408,2]
[408179079,1773182149319,5000.01,0.0001408,2]
[408179080,1773182149344,5000.01,0.0001408,2]
[408179081,1773182149369,5000.01,0.0001408,2]
[408179082,1773182149395,5000.01,0.0001408,2]
[408179083,1773182149419,5000.01,0.0001408,2]
[408179084,1773182149444,5000.01,0.0001408,2]
[408179085,1773182149469,5000.01,0.0001408,2]
[408179086,1773182149494,5000.01,0.0001408,2]
[408179087,1773182149520,5000.01,0.0001408,2]
[408179088,1773182149548,5000.01,0.0001408,2]
[408179089,1773182149574,5000.01,0.0001408,2]
[408179090,1773182149600,5000.01,0.0001408,2]
[408179091,1773182149625,5000.01,0.0001408,2]
[408179092,1773182149659,351387.93570312,0.0001408,2]
[408179093,1773182149695,1849323.39027236,0.0001408,2]
[408179094,1773182153719,-183.12424145,0.00014079,2]
[408179095,1773182153814,-116.87575855,0.00014079,2]
[408179096,1773182153843,-1200.0,0.00014079,2]
[408179097,1773182153871,-300.0,0.00014079,2]
[408179098,1773182153899,-566.2584829,0.00014079,2]
[408179099,1773182153930,-633.7415171,0.00014079,2]
[408179100,1773182165701,-300.0,0.00014078,2]
[408179101,1773182165729,-150.0,0.00014078,2]
[408179102,1773182165763,-500.0,0.00014079,2]
[408179103,1773182165796,-500.0,0.00014079,2]
[408179104,1773182165844,-500.0,0.00014079,2]
[408179105,1773182165880,-500.0,0.00014079,2]
[408179106,1773182166087,-500.0,0.00014079,2]
[408179107,1773182166126,-500.0,0.00014079,2]
[408179108,1773182166159,-500.0,0.00014079,2]
[408179109,1773182166196,-500.0,0.00014079,2]
[408179110,1773182166228,-500.0,0.00014079,2]
[408179111,1773182166285,-500.0,0.00014079,2]
[408179112,1773182166316,-500.0,0.00014079,2]
[408179113,1773182166351,-500.0,0.00014079,2]
[408179114,1773182166384,-500.0,0.00014079,2]
[408179115,1773182166418,-500.0,0.00014079,2]
[408179116,1773182166763,-500.0,0.00014079,2]
[408179117,1773182166795,-500.0,0.00014079,2]
[408179118,1773182166827,-500.0,0.00014079,2]
[408179119,1773182166860,-500.0,0.00014079,2]
[408179120,1773182166893,-500.0,0.00014079,2]
[408179121,1773182167079,-166.26830752,0.00014079,2]
[408179122,1773182167107,-500.0,0.00014079,2]
[408179123,1773182167137,-342.20245366,0.00014079,2]
[408179124,1773182167168,-500.0,0.00014079,2]
[408179125,1773182167196,-184.89254859,0.00014079,2]
[408179126,1773182167229,-500.0,0.00014079,2]
[408179127,1773182167262,-113.28338046,0.00014079,2]
[408179128,1773182167375,-386.71661954,0.00014079,2]
[408179129,1773182167407,-500.0,0.00014079,2]
[408179130,1773182167444,-500.0,0.00014079,2]
[408179131,1773182167470,-500.0,0.00014079,2]
[408179132,1773182167497,-199.30240795,0.00014079,2]
[408179133,1773182167525,-327.97194502,0.00014079,2]
[408179134,1773182167575,-172.02805498,0.00014079,2]
[408179135,1773182167601,-500.0,0.00014079,2]
[408179136,1773182167628,-500.0,0.00014079,2]
[408179137,1773182167658,-500.0,0.00014079,2]
[408179138,1773182167686,-500.0,0.00014079,2]
[408179139,1773182167713,-155.95389004,0.00014079,2]
[408179140,1773182167764,-344.04610996,0.00014079,2]
[408179141,1773182167791,-500.0,0.00014079,2]
[408179142,1773182167818,-277.52553526,0.00014079,2]
[408179143,1773182168705,369.087774,7.945e-05,2]
[408179144,1773182168814,242.69446551,0.00011849,2]
[408179145,1773182183848,-2794.40270297,0.0001408,2]
[408179146,1773182183912,-5000.01,0.0001408,2]
[408179147,1773182186678,-5000.01,0.0001408,2]
[408179148,1773182186796,-5000.01,0.0001408,2]
[408179149,1773182186932,-5000.01,0.0001408,2]
[408179150,1773182187160,-5000.01,0.0001408,2]
[408179151,1773182206883,201.93459152,0.0001,2]
[408179152,1773182228269,4039.621241,7.945e-05,2]
[408179153,1773182237820,220.77438397,0.0001,2]
[408179154,1773182237986,500.0,8.6e-05,2]
[408179155,1773182238469,500.0,8.6e-05,2]
[408179156,1773182238937,500.0,8.6e-05,2]
[408179157,1773182239432,500.0,8.6e-05,2]
[408179158,1773182239962,856.49135586,8.6e-05,2]
[408179159,1773182240935,500.0,8.6e-05,2]
[408179160,1773182241408,500.0,8.6e-05,2]
[408179161,1773182241896,500.0,8.6e-05,2]
[408179162,1773182242044,500.0,8.6e-05,2]
[408179163,1773182242393,500.0,8.6e-05,2]
[408179164,1773182242512,500.0,8.6e-05,2]
[408179165,1773182242907,500.0,8.6e-05,2]
[408179166,1773182242992,143.51864414,8.6e-05,2]
[408179167,1773182243014,356.48135586,8.6e-05,2]
[408179168,1773182243424,848.9963962,8.6e-05,2]
[408179169,1773182243475,500.0,8.6e-05,2]
[408179170,1773182243952,500.0,8.6e-05,2]
[408179171,1773182244436,500.0,8.6e-05,2]
[408179172,1773182244918,500.0,8.6e-05,2]
[408179173,1773182245400,500.0,8.6e-05,2]
[408179174,1773182245712,500.0,8.6e-05,2]
[408179175,1773182245879,500.0,8.6e-05,2]
[408179176,1773182246204,294.53224794,8.6e-05,2]
[408179177,1773182246225,205.46775206,8.6e-05,2]
[408179178,1773182246360,500.0,8.6e-05,2]
[408179179,1773182246820,500.0,8.6e-05,2]
[408179180,1773182246847,627.73978365,8.6e-05,2]
[408179181,1773182246894,500.0,8.6e-05,2]
[408179182,1773182247290,500.0,8.6e-05,2]
[408179183,1773182247377,500.0,8.6e-05,2]
[408179184,1773182247760,500.0,8.6e-05,2]
[408179185,1773182248031,500.0,8.6e-05,2]
[408179186,1773182248241,500.0,8.6e-05,2]
[408179187,1773182248548,500.0,8.6e-05,2]
[408179188,1773182248634,502.65227401,8.6e-05,2]
[408179189,1773182249039,742.60942693,8.6e-05,2]
[408179190,1773182249210,713.97168404,8.6e-05,2]
[408179191,1773182249606,600.0,8.6e-05,2]
[408179192,1773182249800,500.0,8.6e-05,2]
[408179193,1773182250116,600.0,8.6e-05,2]
[408179194,1773182250309,500.0,8.6e-05,2]
[408179195,1773182250450,500.0,8.6e-05,2]
[408179196,1773182250600,600.0,8.6e-05,2]
[408179197,1773182250803,500.0,8.6e-05,2]
[408179198,1773182250926,834.34890819,8.6e-05,2]
[408179199,1773182251101,600.0,8.6e-05,2]
[408179200,1773182251290,500.0,8.6e-05,2]
[408179201,1773182251556,600.0,8.6e-05,2]
[408179202,1773182251778,500.0,8.6e-05,2]
[408179203,1773182252034,206.42770683,8.6e-05,2]
[408179204,1773182252054,393.57229317,8.6e-05,2]
[408179205,1773182252267,830.51224185,8.6e-05,2]
[408179206,1773182252594,600.0,8.6e-05,2]
[408179207,1773182253079,600.0,8.6e-05,2]
[408179208,1773182256935,600.0,8.6e-05,2]
[408179209,1773182257592,600.0,8.6e-05,2]
[408179210,1773182258916,719.4669696,8.6e-05,2]
[408179211,1773182287704,5011.167877,7.945e-05,2]
[408179212,1773182301238,200.0,8.6e-05,2]
[408179218,1773182536707,500.0,8.6e-05,2]
[408179219,1773182537808,500.0,8.6e-05,2]
[408179220,1773182539799,500.0,8.6e-05,2]
[408179221,1773182540324,500.0,8.6e-05,2]
[408179222,1773182540798,785.45770305,8.6e-05,2]
[408179223,1773182543369,500.0,8.6e-05,2]
[408179224,1773182543866,500.0,8.6e-05,2]
[408179225,1773182544420,500.0,8.6e-05,2]
[408179226,1773182544826,700.0,8.6e-05,2]
[408179227,1773182544853,500.0,8.6e-05,2]
[408179228,1773182544973,500.0,8.6e-05,2]
[408179229,1773182545807,500.0,8.6e-05,2]
[408179230,1773182547371,996.07751082,8.6e-05,2]
[408179231,1773182548086,500.0,8.6e-05,2]
[408179232,1773182548309,918.72938126,8.6e-05,2]
[408179233,1773182548931,500.0,8.6e-05,2]
[408179234,1773182549389,969.69737499,8.6e-05,2]
[408179245,1773182772865,4562.55,0.0001308,2]
[408179247,1773182794125,-254.47476701,0.0001381,2]
[408179248,1773182794145,-142.61901826,0.00013891,2]
[408179250,1773182813434,-2075.631938,0.00013821,2]
[408179251,1773182813456,-111.85574874,0.00013891,2]
[408179252,1773182813477,-265.0,0.0001391,2]
[408179253,1773182813501,-250.0,0.00013945,2]
[408179254,1773182813523,-254.474767,0.00013972,2]
[408179255,1773182813545,-357.5607,0.0001398,2]
[408179256,1773182813568,-1200.0,0.00013999,2]
[408179257,1773182813589,-300.0,0.00013999,2]
[408179258,1773182813610,-45185.47684626,0.00014,2]
[408179260,1773182834944,-3489.54636505,0.00014,2]
[408179261,1773182834966,-150.99,0.00014072,2]
[408179262,1773182834988,-9999.99,0.00014072,2]
[408179263,1773182835010,-9999.99,0.00014072,2]
[408179264,1773182835032,-200.0,0.00014072,2]
[408179265,1773182835053,-500.0,0.00014073,2]
[408179266,1773182835074,-3373.17,0.00014073,2]
[408179267,1773182835095,-19999.99,0.00014073,2]
[408179268,1773182835118,-500.0,0.00014073,2]
[408179269,1773182835140,-552.41,0.00014079,2]
[408179270,1773182835164,-1233.91363495,0.0001408,2]
[408179271,1773182837337,500.0,8.6e-05,2]
[408179272,1773182842196,596.29210205,8.6e-05,2]
[408179273,1773182848666,840.83695784,8.6e-05,2]
[408179274,1773182850026,500.0,8.6e-05,2]
[408179275,1773182864674,-50000.0,0.0001408,2]
[408179276,1773182888340,-634.623854,0.00014009,2]
[408179277,1773182888365,-143.4825866,0.0001408,2]
[408179278,1773182888387,-208.36416367,0.0001408,2]
[408179279,1773182888457,307.44905594,0.00014045,2]
[408179282,1773182904306,-500.0,0.00014173,2]
[408179283,1773182904330,-504.59959812,0.00014173,2]
[408179284,1773182904352,-500.0,0.00014173,2]
[408179285,1773182904374,-150.0,0.00014178,2]
[408179286,1773182904398,-300.0,0.00014178,2]
[408179287,1773182904423,-500.0,0.00014179,2]
[408179288,1773182904448,-500.0,0.00014179,2]
[408179289,1773182904473,-500.0,0.00014179,2]
[408179290,1773182904498,-500.0,0.00014179,2]
[408179291,1773182904524,-500.0,0.00014179,2]
[408179292,1773182904549,-500.0,0.00014179,2]
[408179293,1773182904574,-500.0,0.00014179,2]
[408179294,1773182904598,-500.0,0.00014179,2]
[408179295,1773182904622,-500.0,0.00014179,2]
[408179296,1773182904648,-500.0,0.00014179,2]
[408179297,1773182904674,-500.0,0.00014179,2]
[408179298,1773182904699,-500.0,0.00014179,2]
[408179299,1773182904725,-500.0,0.00014179,2]
[408179300,1773182904751,-500.0,0.00014179,2]
[408179301,1773182904777,-500.0,0.00014179,2]
[408179302,1773182904804,-500.0,0.00014179,2]
[408179303,1773182904828,-626.00164935,0.00014179,2]
[408179304,1773182904850,-500.0,0.0001418,2]
[408179305,1773182904871,-500.0,0.0001418,2]
[408179306,1773182904893,-500.0,0.0001418,2]
[408179307,1773182904915,-500.0,0.0001418,2]
[408179308,1773182904937,-500.0,0.0001418,2]
[408179309,1773182904959,-500.0,0.0001418,2]
[408179310,1773182904980,-515.04799021,0.0001418,2]
[408179311,1773182905001,-500.0,0.0001418,2]
[408179312,1773182905023,-500.0,0.0001418,2]
[408179313,1773182905044,-500.0,0.0001418,2]
[408179314,1773182905066,-500.0,0.0001418,2]
[408179315,1773182905089,-500.0,0.0001418,2]
[408179316,1773182905110,-500.0,0.0001418,2]
[408179317,1773182905133,-509.45035815,0.0001418,2]
[408179318,1773182905155,-500.0,0.0001418,2]
[408179319,1773182905179,-500.0,0.0001418,2]
[408179320,1773182905771,-500.0,0.0001418,2]
[408179321,1773182905792,-500.0,0.0001418,2]
[408179322,1773182905815,-500.0,0.0001418,2]
[408179323,1773182905836,-515.94518395,0.0001418,2]
[408179324,1773182905858,-500.0,0.0001418,2]
[408179325,1773182905879,-500.0,0.0001418,2]
[408179326,1773182905900,-500.0,0.0001418,2]
[408179327,1773182905921,-500.0,0.0001418,2]
[408179328,1773182905943,-500.9565902,0.0001418,2]
[408179329,1773182905965,-500.0,0.0001418,2]
[408179330,1773182905986,-500.0,0.0001418,2]
[408179331,1773182906007,-500.0,0.0001418,2]
[408179332,1773182906028,-500.0,0.0001418,2]
[408179333,1773182906049,-500.0,0.0001418,2]
[408179334,1773182906070,-500.0,0.0001418,2]
[408179335,1773182906091,-500.0,0.0001418,2]
[408179336,1773182906111,-500.0,0.0001418,2]
[408179337,1773182906132,-500.0,0.0001418,2]
[408179338,1773182906155,-500.0,0.0001418,2]
[408179339,1773182906176,-500.0,0.0001418,2]
[408179340,1773182906196,-500.0,0.0001418,2]
[408179341,1773182906217,-500.0,0.0001418,2]
[408179342,1773182906237,-500.0,0.0001418,2]
[408179343,1773182906258,-500.0,0.0001418,2]
[408179344,1773182906279,-500.0,0.0001418,2]
[408179345,1773182906300,-500.0,0.0001418,2]
[408179346,1773182906322,-500.0,0.0001418,2]
[408179347,1773182906345,-500.0,0.0001418,2]
[408179348,1773182906367,-500.0,0.0001418,2]
[408179349,1773182906388,-500.0,0.0001418,2]
[408179350,1773182906412,-500.0,0.0001418,2]
[408179351,1773182906434,-500.0,0.0001418,2]
[408179352,1773182906456,-500.0,0.0001418,2]
[408179353,1773182906476,-500.0,0.0001418,2]
[408179354,1773182906497,-500.0,0.0001418,2]
[408179355,1773182906519,-500.0,0.0001418,2]
[408179356,1773182906539,-500.0,0.0001418,2]
[408179357,1773182906560,-500.0,0.0001418,2]
[408179358,1773182906580,-500.0,0.0001418,2]
[408179359,1773182906600,-500.0,0.0001418,2]
[408179360,1773182906621,-500.0,0.0001418,2]
[408179361,1773182906642,-500.0,0.0001418,2]
[408179362,1773182906662,-530.0627847,0.0001418,2]
[408179363,1773182906684,-500.0,0.0001418,2]
[408179364,1773182906705,-500.0,0.0001418,2]
[408179365,1773182906726,-500.0,0.0001418,2]
[408179366,1773182906748,-404.44403902,0.0001423,2]
[408179367,1773182906770,-170.349282,0.0001425,7]
[408179368,1773182906792,-552.41,0.00014353,2]
[408179369,1773182906816,-632.91,0.00014489,2]
[408179371,1773182925483,500.0,0.0001374,2]
[408179372,1773182946332,4793.90286409,0.000139,2]
[408179373,1773182970072,-1647.11414996,0.00013886,2]
[408179374,1773182970096,-3320.53025204,0.000139,2]
[408179377,1773183002348,-300.0,0.00013899,2]
[408179378,1773183002376,-1200.0,0.00013899,2]
[408179379,1773183008588,-157.81,0.0001389,2]
[408179380,1773183008616,-2438.35,0.0001389,2]
[408179381,1773183008643,-2369.34,0.0001389,2]
[408179397,1773183031572,-326.16418582,0.0001389,2]
[408179399,1773183031582,-3224.31069972,0.000139,2]
[408179401,1773183031594,-1528653.80339539,0.000139,2]
[408179403,1773183031609,-187810.35724755,0.000139,2]
[408179405,1773183031620,-144969.90751582,0.000139,2]
[408179407,1773183031631,-84882.10788398,0.000139,2]
[408179410,1773183031697,-18400.0,0.000139,2]
[408179411,1773183031709,-328.9314,0.000139,2]
[408179412,1773183031760,-9835.566751,0.000139,2]
[408179413,1773183031772,-9974.87924242,0.000139,2]
[408179431,1773183037792,-1140.9350172,0.000139,2]
[408179432,1773183037805,-267.44959684,0.000139,2]
[408179441,1773183040771,-62473.63069765,0.000139,2]
[408179442,1773183040802,-607.59578014,0.000139,2]
[408179443,1773183040813,-1386.70499995,0.000139,2]
[408179465,1773183042977,-3038.3,0.000139,2]
[408179484,1773183045659,-500.0,0.000139,2]
[408179486,1773183045671,-5173.23612227,0.000139,2]
[408179488,1773183045682,-390.35188999,0.000139,2]
[408179502,1773183140699,500.0,8.6e-05,2]
[408179503,1773183142642,500.0,8.6e-05,2]
[408179504,1773183146727,500.0,8.6e-05,2]
[408179505,1773183566490,1032.81610295,0.000108,2]
[408179506,1773183593544,10000.01,0.0001199,2]
[408179507,1773183593566,3988.12565266,0.0001199,2]
[408179509,1773183691133,7038.19,0.0002,120]
[408179510,1773183754271,5000.01,9.5e-05,3]
[408179511,1773183754292,6011.88434734,9.5e-05,3]
[408179512,1773183754312,10000.01,9.5e-05,3]
[408179513,1773183754333,10000.01,9.5e-05,3]
[408179514,1773183754353,10000.01,9.5e-05,3]
[408179515,1773183754375,10000.01,9.5e-05,3]
[408179516,1773183754397,538.54061799,9.5e-05,3]
[408179517,1773183754418,1150.3228575,9.5e-05,3]
[408179518,1773183754438,681.83793336,9.5e-05,3]
[408179519,1773183754783,468.48492414,0.0001,2]
[408179520,1773183754804,1150.3228575,0.0001,2]
[408179521,1773183754824,1150.3228575,0.0001,2]
[408179522,1773183754846,516.38235334,0.0001,2]
[408179523,1773183756412,347.81398537,0.0001,2]
[408179525,1773183788069,6107.222532,7.945e-05,2]
[408179526,1773183908031,200.0,0.0002,120]
[408179527,1773183974437,240.86,0.00010236,2]
[408179528,1773183974650,240.86,0.0001126,2]
[408179529,1773183974860,240.86,0.00012283,2]
[408179530,1773184006126,-150.0,0.00012864,2]
[408179531,1773184006148,-1099.61558282,0.00012999,2]
[408179532,1773184038139,500.0,8.6e-05,2]
[408179533,1773184038183,814.70211509,8.6e-05,2]
[408179534,1773184038639,500.0,8.6e-05,2]
[408179535,1773184039134,500.0,8.6e-05,2]
[408179536,1773184039629,819.22392426,8.6e-05,2]
[408179537,1773184040256,500.0,8.6e-05,2]
[408179538,1773184040719,912.29870383,8.6e-05,2]
[408179539,1773184043061,500.0,8.6e-05,2]
[408179540,1773184043649,631.20725913,8.6e-05,2]
[408179541,1773184046743,846.02005319,8.6e-05,2]
[408179542,1773184047552,500.0,8.6e-05,2]
[408179543,1773184051248,919.41203317,8.6e-05,2]
[408179544,1773184051667,500.0,8.6e-05,2]
[408179545,1773184051928,500.0,8.6e-05,2]
[408179546,1773184052487,500.0,8.6e-05,2]
[408179547,1773184052521,500.0,8.6e-05,2]
[408179548,1773184052584,500.26,0.0002,120]
[408179549,1773184052650,500.0,8.6e-05,2]
[408179550,1773184052893,500.0,8.6e-05,2]
[408179551,1773184053139,500.0,8.6e-05,2]
[408179552,1773184053168,500.0,8.6e-05,2]
[408179553,1773184053364,80.59796683,8.6e-05,2]
[408179554,1773184053386,419.40203317,8.6e-05,2]
[408179555,1773184053680,500.0,8.6e-05,2]
[408179556,1773184054200,500.0,8.6e-05,2]
[408179557,1773184054699,500.0,8.6e-05,2]
[408179558,1773184055174,500.0,8.6e-05,2]
[408179559,1773184055725,500.0,8.6e-05,2]
[408179560,1773184056155,500.0,8.6e-05,2]
[408179561,1773184056627,500.0,8.6e-05,2]
[408179562,1773184057108,544.18004214,8.6e-05,2]
[408179563,1773184121398,200.0,9.2e-05,2]
[408179564,1773184128220,169.75681034,0.0001,2]
[408179565,1773184147445,369.087774,7.945e-05,2]
[408179571,1773184226966,10000.01,0.00012654,2]
[408179572,1773184226987,6580.59,0.00012654,2]
[408179579,1773184231727,-255.0,0.00012747,2]
[408179581,1773184231742,-2000.0,0.00012747,2]
[408179582,1773184231752,-422.15772832,0.00012899,2]
[408179583,1773184231761,-37.62402286,0.00012899,2]
[408179584,1773184231773,-864.06206667,0.00012899,2]
[408179585,1773184231785,-424.84285358,0.00012899,2]
[408179586,1773184231796,-296.12289805,0.00012899,2]
[408179587,1773184231806,-366.49441718,0.00012999,2]
[408179588,1773184231815,-1200.0,0.00012999,2]
[408179589,1773184231833,-3393.9260322,0.00013,15]
[408179590,1773184231843,-300.0,0.00013019,2]
[408179591,1773184231852,-1105.0,0.00013238,2]
[408179592,1773184231861,-300.0,0.00013238,2]
[408179593,1773184231870,-354.035264,0.0001324,2]
[408179594,1773184231881,-500.0,0.0001324,2]
[408179595,1773184231891,-422.15772832,0.00013286,2]
[408179596,1773184231900,-240.86,0.00013307,2]
[408179597,1773184231911,-500.0,0.00013503,2]
[408179598,1773184231920,-1009.0,0.00013554,2]
[408179599,1773184231930,-1767.0,0.00013576,2]
[408179601,1773184231942,-293.0,0.00013603,2]
[408179603,1773184231951,-241.822325,0.00013603,2]
[408179605,1773184231960,-1221.24,0.00013622,2]
[408179607,1773184231969,-501.0,0.00013623,2]
[408179609,1773184231978,-1366.0,0.0001365,2]
[408179611,1773184231988,-1946.4807,0.00013671,2]
[408179613,1773184231997,-2140.2273593,0.00013672,2]
[408179615,1773184232006,-422.15772832,0.00013672,2]
[408179617,1773184232016,-1953.09579843,0.00013672,2]
[408179619,1773184232025,-500.0,0.00013673,2]
[408179621,1773184232034,-456.67098084,0.00013673,2]
[408179623,1773184232043,-500.0,0.00013673,2]
[408179625,1773184232052,-500.0,0.00013673,2]
[408179627,1773184232061,-167.15928799,0.00013673,2]
[408179629,1773184232070,-453.76514042,0.0001369,2]
[408179631,1773184232079,-1384.0,0.00013696,2]
[408179632,1773184232088,-150.0,0.00013698,2]
[408179633,1773184232098,-500.0,0.00013699,2]
[408179634,1773184232107,-303.37961019,0.00013699,2]
[408179635,1773184232116,-500.0,0.00013699,2]
[408179636,1773184232125,-559.61703418,0.00013699,2]
[408179637,1773184232138,-500.0,0.00013699,2]
[408179638,1773184232146,-193.56854265,0.00013699,2]
[408179639,1773184232156,-500.0,0.00013699,2]
[408179640,1773184232165,-500.0,0.00013699,2]
[408179641,1773184232174,-500.0,0.00013699,2]
[408179642,1773184232184,-500.0,0.00013699,2]
[408179643,1773184232193,-464.46158045,0.00013699,2]
[408179644,1773184232202,-500.0,0.00013699,2]
[408179645,1773184232211,-500.0,0.00013699,2]
[408179646,1773184232221,-500.0,0.00013699,2]
[408179647,1773184232230,-500.0,0.00013699,2]
[408179648,1773184232239,-500.0,0.00013699,2]
[408179649,1773184232248,-500.0,0.00013699,2]
[408179650,1773184232257,-500.0,0.00013699,2]
[408179651,1773184232267,-500.0,0.00013699,2]
[408179652,1773184232277,-500.0,0.00013699,2]
[408179653,1773184232286,-500.0,0.00013699,2]
[408179654,1773184232295,-500.0,0.00013699,2]
[408179655,1773184232304,-500.0,0.00013699,2]
[408179656,1773184232313,-500.0,0.00013699,2]
[408179657,1773184232322,-322.85100424,0.00013699,2]
[408179658,1773184232334,-500.0,0.00013699,2]
[408179659,1773184232344,-500.0,0.00013699,2]
[408179660,1773184232353,-500.0,0.00013699,2]
[408179661,1773184232362,-500.0,0.00013699,2]
[408179662,1773184232371,-500.0,0.00013699,2]
[408179663,1773184232380,-144703.18454874,0.000137,2]
[408179664,1773184232392,-63607.73241852,0.000137,2]
[408179665,1773184232403,-1254.41808677,0.000137,2]
[408179666,1773184232415,-1309.68764366,0.000137,2]
[408179667,1773184232425,-267.37735194,0.000137,2]
[408179668,1773184232437,-700.36150344,0.000137,2]
[408179669,1773184232448,-343.29292514,0.000137,2]
[408179670,1773184232459,-326.03172292,0.000137,2]
[408179671,1773184232469,-827.08473548,0.000137,2]
[408179672,1773184232481,-2305.12526452,0.000137,2]
[408179673,1773184232492,-5644.98866756,0.000137,2]
[408179674,1773184232508,-706.82415317,0.000137,2]
[408179675,1773184232520,-3248.41634028,0.000137,2]
[408179685,1773184237910,-2274755.47463786,0.000137,2]
[408179686,1773184237922,-765.99,0.000137,2]
[408179687,1773184237932,-765.99,0.000137,2]
[408179688,1773184237942,-765.99,0.000137,2]
[408179689,1773184237953,-765.99,0.000137,2]
[408179690,1773184237963,-765.99,0.000137,2]
[408179691,1773184237974,-19190.3138,0.00013772,2]
[408179692,1773184237986,-500.0,0.00013773,2]
[408179693,1773184237996,-500.0,0.00013773,2]
[408179694,1773184238007,-500.0,0.00013773,2]
[408179695,1773184238019,-500.0,0.00013773,2]
[408179696,1773184238030,-500.31767514,0.00013773,2]
[408179697,1773184238043,-500.0,0.00013773,2]
[408179698,1773184238054,-500.0,0.00013773,2]
[408179699,1773184238063,-163.96545935,0.00013773,2]
[408179700,1773184238073,-500.0,0.00013773,2]
[408179701,1773184238083,-500.0,0.00013773,2]
[408179702,1773184238093,-500.0,0.00013773,2]
[408179703,1773184238102,-168.3299599,0.00013773,2]
[408179704,1773184238112,-892.86053309,0.00013799,2]
[408179705,1773184238121,-500.0,0.000138,2]
[408179706,1773184238131,-351.35782912,0.000138,2]
[408179708,1773184238141,-3667.9245,0.000138,2]
[408179710,1773184238151,-15504.03,0.000138,2]
[408179712,1773184238161,-9999.99,0.000138,2]
[408179714,1773184238170,-242.17,0.000138,2]
[408179716,1773184238181,-299.99,0.000138,2]
[408179718,1773184238191,-165.2939603,0.000138,2]
[408179719,1773184238202,-1378.92577181,0.000138,2]
[408179720,1773184238213,-406.29,0.00013872,2]
[408179721,1773184238224,-9999.99,0.00013872,2]
[408179722,1773184238234,-150.99,0.00013872,2]
[408179723,1773184238244,-500.37976244,0.00013873,2]
[408179724,1773184238254,-500.0,0.00013873,2]
[408179725,1773184238265,-500.37983606,0.00013873,2]
[408179726,1773184238276,-500.0,0.00013873,2]
[408179727,1773184238286,-500.0,0.00013873,2]
[408179728,1773184238297,-281.78993835,0.00013873,2]
[408179729,1773184238308,-202.88923796,0.00013873,2]
[408179730,1773184238318,-500.0,0.00013899,2]
[408179731,1773184238328,-500.0,0.00013899,2]
[408179732,1773184238339,-500.0,0.00013899,2]
[408179733,1773184238349,-500.0,0.00013899,2]
[408179734,1773184238360,-236.37308804,0.000139,2]
[408179735,1773184238371,-2495.8651011,0.00013902,2]
[408179736,1773184238381,-516.64002131,0.00013936,2]
[408179737,1773184238390,-500.0,0.00013936,2]
[408179738,1773184238401,-1221.24,0.00013963,2]
[408179739,1773184238419,-180.0,0.00013993,2]
[408179740,1773184238432,-1737.0,0.0001402,2]
[408179741,1773184238441,-4091.53725444,0.00014022,2]
[408179742,1773184238452,-300.0,0.00014022,2]
[408179743,1773184238465,-2053.01258171,0.00014022,2]
[408179744,1773184238476,-250.0,0.00014022,2]
[408179745,1773184238486,-500.0,0.00014022,2]